bitfinex-derivatives/quotes_ETHF0:USTF0_20250220
["timestamp","ask_amount","ask_price","bid_price","bid_amount"]
[1740050102485,0.72986,2739.9,2739.4,61.03]
[1740050102486,3.7597,2740.0,2739.4,23.9752]
[1740050102783,0.72997,2739.5,2739.4,26.3018]
[1740050102991,0.72997,2739.5,2739.4,23.9798]
[1740050103381,0.72997,2739.5,2739.4,23.4378]
[1740050103582,0.58,2739.7,2739.4,23.4378]
[1740050103783,0.72979,2740.2,2739.4,24.5619]
[1740050103985,1.1399,2740.2,2740.1,0.72981]
[1740050104788,1.86968,2740.2,2739.9,1.6615]
[1740050104989,1.1399,2740.2,2740.1,0.72981]
[1740050105387,0.72978,2740.3,2739.9,1.6615]
[1740050105586,0.5459,2740.4,2740.2,3.2078]
[1740050105787,1.27563,2740.4,2740.3,0.5634]
[1740050105983,0.5459,2740.4,2740.3,1.29315]
[1740050106188,1.27563,2740.4,2740.3,0.5634]
[1740050106687,0.72973,2740.4,2740.3,0.5634]
[1740050107687,1.1197,2740.5,2740.4,0.72973]
[1740050108784,0.72973,2740.4,2740.3,1.6974]
[1740050109887,0.02750278,2740.8,2740.3,1.6974]
[1740050110088,0.72969,2740.6,2740.5,3.9375]
[1740050110690,0.72969,2740.6,2740.5,3.2078]
[1740050111590,0.02750278,2740.8,2740.3,1.6974]
[1740050111894,0.02750278,2740.8,2740.4,0.72971]
[1740050112087,0.02750278,2740.8,2740.3,1.6974]
[1740050112287,0.72973,2740.4,2740.3,1.127]
[1740050114892,0.72973,2740.4,2740.3,3.449]
[1740050115092,0.72973,2740.4,2740.3,1.127]
[1740050115599,0.72975,2740.3,2740.2,3.2078]
[1740050116093,0.72981,2740.1,2740.0,2.322]
[1740050116590,0.542,2740.4,2740.0,2.322]
[1740050116786,0.72978,2740.3,2740.2,3.2078]
[1740050124006,0.72978,2740.3,2740.2,3.7915]
[1740050125904,0.72978,2740.3,2740.2,3.2078]
[1740050128001,2.36639,2740.4,2739.9,2.322]
[1740050128202,0.5371,2740.2,2739.9,2.322]
[1740050128402,0.72983,2740.0,2739.9,2.322]
[1740050128703,0.72989,2739.8,2739.7,3.9377]
[1740050128902,0.72989,2739.8,2739.7,3.2078]
[1740050129201,2.99827,2740.1,2739.5,1.1173]
[1740050129202,0.72994,2739.6,2739.5,1.1173]
[1740050131208,0.72997,2739.5,2739.4,5.5298]
[1740050131400,1.27007,2739.5,2739.4,6.25979]
[1740050131907,1.27007,2739.5,2739.4,5.5298]
[1740050132106,0.72997,2739.5,2739.4,5.5298]
[1740050135309,0.5516,2739.7,2739.4,5.5298]
[1740050135503,1.28154,2739.7,2739.6,0.72994]
[1740050136109,0.72989,2739.9,2739.4,5.5298]
[1740050136408,0.72992,2739.7,2739.6,0.72992]
[1740050137009,0.72989,2739.8,2739.4,5.5298]
[1740050137215,0.72989,2739.8,2739.7,0.72991]
[1740050137505,1.135,2740.0,2739.4,5.5298]
[1740050137712,0.5688,2740.0,2739.9,0.72986]
[1740050138009,1.29863,2740.0,2739.9,0.72986]
[1740050138604,0.72988,2739.9,2739.8,0.72987]
[1740050138912,1.29865,2740.0,2739.9,0.72986]
[1740050139209,0.5662,2740.4,2739.9,3.2078]
[1740050139399,0.5372,2740.3,2740.2,0.72978]
[1740050139598,0.7298,2740.2,2740.0,0.72982]
[1740050140305,0.5372,2740.3,2739.9,4.52576]
[1740050140614,0.5372,2740.3,2739.9,3.93766]
[1740050140807,0.72982,2740.1,2739.9,3.93766]
[1740050141407,0.72983,2740.0,2739.9,3.93766]
[1740050141605,0.72983,2740.0,2739.9,3.2078]
[1740050143414,0.72983,2740.0,2739.9,3.93766]
[1740050143714,0.72983,2740.0,2739.9,3.2078]
[1740050145013,0.72994,2739.7,2739.6,2.322]
[1740050145311,0.72994,2739.7,2739.5,0.72995]
[1740050145312,0.72994,2739.7,2739.5,3.05195]
[1740050145612,1.26544,2739.6,2739.5,2.322]
[1740050145813,1.26544,2739.6,2739.2,20.96703]
[1740050145814,0.73001,2739.4,2739.2,20.96703]
[1740050146112,0.5355,2739.6,2739.1,3.2078]
[1740050146318,0.73005,2739.2,2739.1,3.2078]
[1740050146710,1.26555,2739.2,2739.1,3.2078]
[1740050148906,0.5355,2739.2,2739.1,3.2078]
[1740050149112,0.5355,2739.2,2739.1,3.93787]
[1740050149312,0.5355,2739.2,2738.8,3.7783]
[1740050149819,0.7301,2739.0,2738.8,3.7783]
[1740050150014,0.7301,2739.0,2738.9,0.5414]
[1740050152507,0.73013,2738.9,2738.8,3.7783]
[1740050153818,0.73013,2738.9,2738.8,0.5705]
[1740050154020,0.73013,2738.9,2738.8,3.7783]
[1740050155017,0.73021,2738.6,2738.5,3.2078]
[1740050155223,1.1429,2738.8,2738.5,3.2078]
[1740050155411,0.7302,2738.7,2738.6,0.5718]
[1740050156515,1.3183,2738.7,2738.6,0.5718]
[1740050157216,0.7302,2738.7,2738.6,0.5718]
[1740050158923,0.73021,2738.6,2738.5,3.2078]
[1740050159123,1.29851,2738.6,2738.5,3.2078]
[1740050160624,1.29851,2738.6,2738.5,3.93803]
[1740050161626,3.93789,2739.1,2738.9,0.73013]
[1740050161822,3.93787,2739.1,2739.0,0.554]
[1740050162324,0.73015,2738.8,2738.7,0.73017]
[1740050164418,0.73015,2738.9,2738.7,1.31177]
[1740050164623,3.2078,2739.1,2738.7,1.31177]
[1740050164923,3.2078,2739.1,2738.8,0.73014]
[1740050165122,0.73015,2738.8,2738.7,1.31177]
[1740050166721,1.149,2739.2,2738.7,0.5816]
[1740050166927,0.73011,2739.0,2738.9,0.73011]
[1740050167324,1.149,2739.2,2739.1,0.73007]
[1740050167524,1.30505,2739.2,2739.1,0.73007]
[1740050168432,0.73007,2739.1,2739.0,1.29139]
[1740050169720,1.30506,2739.2,2739.1,0.73007]
[1740050170324,0.00547226,2739.4,2739.3,0.73002]
[1740050173921,0.5596,2740.0,2739.9,0.72986]
[1740050174133,0.72983,2740.0,2739.9,3.93766]
[1740050174928,0.5348,2740.3,2739.8,1.85008]
[1740050175229,0.5826,2739.9,2739.8,1.85008]
[1740050175629,0.5826,2739.9,2739.8,5.05788]
[1740050177331,0.5826,2739.9,2739.8,1.85008]
[1740050177741,1.31246,2739.9,2739.8,1.85008]
[1740050178032,1.31246,2739.9,2739.8,1.1202]
[1740050178233,1.31246,2739.9,2739.8,1.85009]
[1740050179232,0.5826,2739.9,2739.8,1.85009]
[1740050179534,1.31246,2739.9,2739.8,1.85009]
[1740050179935,0.5826,2739.9,2739.7,2.333]
[1740050180136,1.29799,2739.8,2739.7,3.0629]
[1740050180434,0.5681,2739.8,2739.7,3.0629]
[1740050181833,1.29799,2739.8,2739.7,3.0629]
[1740050182263,0.5681,2739.8,2739.7,3.0629]
[1740050183127,1.29799,2739.8,2739.6,3.7729]
[1740050183339,0.72999,2739.4,2739.3,3.93781]
[1740050183638,0.5473,2739.7,2739.3,5.5368]
[1740050183839,0.72999,2739.4,2739.3,6.2668]
[1740050184238,0.5473,2739.7,2739.3,5.5368]
[1740050184434,0.72995,2739.6,2739.5,0.72996]
[1740050184741,0.72993,2739.7,2739.6,0.72992]
[1740050184936,0.5681,2739.8,2739.3,5.5368]
[1740050185138,0.72995,2739.6,2739.5,0.72995]
[1740050188537,0.5681,2739.8,2739.3,3.2078]
[1740050188838,0.72999,2739.4,2739.3,3.2078]
[1740050189739,0.72999,2739.4,2739.3,3.93782]
[1740050190735,0.72999,2739.4,2739.3,3.2078]
[1740050190936,1.28849,2739.4,2739.3,3.2078]
[1740050191130,0.5585,2739.4,2739.1,0.00547226]
[1740050191341,0.73005,2739.2,2739.1,0.00547226]
[1740050191939,0.73005,2739.2,2739.1,0.73554226]
[1740050192134,0.73005,2739.2,2739.1,0.00547226]
[1740050193545,0.73005,2739.2,2739.1,3.21327226]
[1740050194936,0.73005,2739.2,2739.1,3.94334226]
[1740050196141,1.26924,2739.3,2739.2,0.73005]
[1740050196534,1.26924,2739.3,2739.2,0.587]
[1740050196945,1.26924,2739.3,2739.2,1.31705]
[1740050197246,1.26924,2739.3,2739.2,0.587]
[1740050197447,0.5887,2739.5,2739.2,0.587]
[1740050197643,1.127,2739.8,2739.7,0.72991]
[1740050197950,0.5601,2740.1,2740.0,0.72983]
[1740050198136,0.72984,2740.0,2739.9,0.72985]
[1740050198336,0.5601,2740.1,2739.8,1.1641]
[1740050198847,0.5601,2740.1,2739.9,0.72984]
[1740050198848,1.28993,2740.1,2739.9,0.72984]
[1740050199049,0.5601,2740.1,2739.9,0.72984]
[1740050199443,1.28992,2740.1,2739.9,0.72984]
[1740050199646,0.5601,2740.1,2739.8,1.1641]
[1740050199945,0.72986,2739.9,2739.8,0.5771]
[1740050200448,0.72989,2739.8,2739.7,3.2078]
[1740050200649,0.72989,2739.8,2739.7,4.52711]
[1740050200846,0.72988,2739.9,2739.7,4.52711]
[1740050201546,0.5601,2740.1,2739.7,4.52711]
[1740050201547,0.5601,2740.1,2739.7,4.5271]
[1740050201836,0.72989,2739.8,2739.7,4.5271]
[1740050202043,0.72989,2739.8,2739.7,3.7972]
[1740050202344,0.72988,2739.9,2739.7,4.5271]
[1740050202546,0.72989,2739.8,2739.7,4.5271]
[1740050203047,0.72988,2739.9,2739.7,4.5271]
[1740050204949,0.5601,2740.1,2739.7,4.5271]
[1740050205351,0.72989,2739.8,2739.7,4.5271]
[1740050206056,0.72988,2739.9,2739.7,4.5271]
[1740050206945,0.72988,2739.9,2739.8,0.72989]
[1740050207252,0.72986,2739.9,2739.8,0.72989]
[1740050207451,0.72986,2739.9,2739.8,1.30889]
[1740050214057,0.72989,2739.8,2739.7,3.93769]
[1740050214260,1.28039,2739.8,2739.7,3.93769]
[1740050216666,0.72989,2739.9,2739.8,0.72989]
[1740050217168,0.72989,2739.8,2739.7,3.93769]
[1740050217369,0.72989,2739.9,2739.8,0.72987]
[1740050218363,1.1009,2740.1,2739.7,3.2078]
[1740050218668,0.72989,2739.8,2739.7,3.9377]
[1740050225973,0.72988,2739.9,2739.8,0.72987]
[1740050226173,0.72986,2740.0,2739.9,0.72985]
[1740050226470,0.72986,2739.9,2739.8,1.30287]
[1740050231978,0.72986,2739.9,2739.8,0.573]
[1740050232171,0.72986,2739.9,2739.8,1.30289]
[1740050233270,0.72986,2739.9,2739.8,0.573]
[1740050233474,0.72986,2739.9,2739.8,1.30289]
[1740050234371,0.72986,2739.9,2739.8,0.573]
[1740050234573,0.72986,2739.9,2739.8,1.30289]
[1740050236578,0.72986,2739.9,2739.8,0.573]
[1740050236878,0.72986,2739.9,2739.8,1.30289]
[1740050237180,0.72986,2739.9,2739.8,0.573]
[1740050238572,1.8246,2740.0,2739.3,3.2078]
[1740050238774,0.73002,2739.3,2739.2,0.5409]
[1740050239066,0.73002,2739.3,2739.2,2.322]
[1740050239680,0.73005,2739.2,2739.1,0.00547226]
[1740050239868,1.27705,2739.2,2739.1,0.00547226]
[1740050264895,1.1198,2739.6,2739.1,0.00547226]
[1740050265098,0.5578,2740.0,2739.5,3.2078]
[1740050265295,2.39925,2740.0,2739.7,0.7299]
[1740050265496,2.39925,2740.0,2739.6,2.42982]
[1740050265902,1.6694,2740.0,2739.6,2.42982]
[1740050266201,0.72989,2739.8,2739.6,2.42982]
[1740050266897,1.6694,2740.0,2739.6,2.42982]
[1740050267090,0.72988,2739.9,2739.6,2.42982]
[1740050267796,1.6694,2740.0,2739.6,1.6999]
[1740050268007,0.72994,2739.6,2739.5,2.323]
[1740050268199,0.73005,2739.2,2739.1,2.32747226]
[1740050268503,0.73005,2739.2,2739.1,5.53527226]
[1740050280215,0.73005,2739.2,2739.1,6.26534226]
[1740050281121,2.41449,2739.5,2739.4,0.72999]
[1740050281308,1.1501,2739.5,2739.4,0.72999]
[1740050281510,3.2078,2739.7,2739.1,5.53527226]
[1740050281705,0.72998,2739.5,2739.4,0.72998]
[1740050282208,0.72998,2739.5,2739.4,3.93778]
[1740050282410,0.72998,2739.5,2739.4,3.2078]
[1740050282817,0.72998,2739.5,2739.4,3.7958]
[1740050283120,0.72998,2739.5,2739.4,4.52579]
[1740050284815,0.72998,2739.5,2739.4,3.7958]
[1740050285025,0.72998,2739.5,2739.4,3.2078]
[1740050285316,0.72999,2739.4,2739.3,0.73001]
[1740050285621,1.27109,2739.4,2739.3,0.73001]
[1740050285919,1.27111,2739.4,2739.3,0.73002]
[1740050287320,0.73005,2739.3,2739.2,0.73004]
[1740050287514,1.28375,2739.3,2739.2,0.73004]
[1740050287716,0.5537,2739.3,2739.1,6.10187226]
[1740050287913,0.73005,2739.2,2739.1,4.50993226]
[1740050288220,0.73005,2739.2,2739.1,6.83193226]
[1740050297026,1.84965,2739.3,2739.2,0.73005]
[1740050298428,1.84965,2739.3,2739.2,3.93785]
[1740050302130,1.84965,2739.3,2739.2,0.73005]
[1740050302929,1.84965,2739.3,2739.2,3.93785]
[1740050303331,1.28375,2739.3,2739.2,3.93785]
[1740050304633,1.28375,2739.3,2739.2,3.2078]
[1740050304833,1.28375,2739.3,2739.2,3.93785]
[1740050305428,0.73005,2739.3,2739.2,3.93785]
[1740050305627,0.5411,2739.4,2739.2,3.2078]
[1740050305926,0.5455,2739.6,2739.5,0.72997]
[1740050306126,0.5455,2739.6,2739.5,47.05977]
[1740050307034,0.5455,2739.6,2739.5,6.25977]
[1740050308528,0.5455,2739.6,2739.1,3.21327226]
[1740050308835,0.73003,2739.3,2739.2,0.73003]
[1740050309131,0.73003,2739.3,2739.1,3.94333226]
[1740050309433,1.88475,2739.2,2739.1,3.94333226]
[1740050310635,1.1547,2739.2,2739.1,3.94333226]
[1740050312126,1.88475,2739.2,2739.1,3.21327226]
[1740050316838,1.88475,2739.2,2739.1,0.00547226]
[1740050317137,1.88475,2739.2,2739.1,3.21327226]
[1740050317740,1.1547,2739.2,2739.1,3.21327226]
[1740050317934,1.1547,2739.2,2739.1,3.94334226]
[1740050318136,1.1547,2739.2,2739.1,5.09214226]
[1740050318336,1.88475,2739.2,2739.1,5.09214226]
[1740050318827,1.31355,2739.2,2739.1,5.09214226]
[1740050320540,0.73005,2739.2,2739.1,5.09214226]
[1740050321240,0.5614,2739.4,2739.3,0.73002]
[1740050322035,0.5777,2739.6,2739.5,0.72997]
[1740050322238,1.30764,2739.6,2739.5,3.93777]
[1740050322544,1.30764,2739.6,2739.5,3.2078]
[1740050322936,1.30764,2739.6,2739.5,3.93777]
[1740050323241,1.30764,2739.6,2739.5,3.2078]
[1740050323632,1.30764,2739.6,2739.5,3.93777]
[1740050326537,0.5777,2739.6,2739.5,3.93777]
[1740050326740,0.5411,2739.8,2739.7,0.72991]
[1740050327330,1.27099,2739.8,2739.7,0.72991]
[1740050330839,0.72989,2739.8,2739.7,0.72991]
[1740050339541,1.13,2740.0,2739.5,4.3487]
[1740050339744,0.72991,2739.8,2739.7,0.7299]
[1740050342547,0.72991,2739.8,2739.7,3.0519]
[1740050343449,0.72989,2739.8,2739.7,3.0519]
[1740050343645,0.72989,2739.8,2739.7,2.322]
[1740050344846,0.72989,2739.8,2739.7,3.05191]
[1740050346747,0.72988,2739.9,2739.8,0.72988]
[1740050347152,1.11,2740.0,2739.7,2.322]
[1740050347551,0.72986,2739.9,2739.8,0.72989]
[1740050347752,1.11,2740.0,2739.7,2.322]
[1740050348152,1.11,2740.0,2739.7,3.05189]
[1740050348153,0.72989,2739.8,2739.7,3.05189]
[1740050348446,1.11,2740.0,2739.7,2.322]
[1740050348652,0.57137226,2740.2,2739.8,3.2078]
[1740050348848,0.57137226,2740.2,2740.1,0.72981]
[1740050349057,0.00547226,2740.2,2740.1,3.93761]
[1740050349847,3.2078,2741.2,2740.1,5.5298]
[1740050350047,0.72969,2740.6,2740.5,0.72969]
[1740050350248,0.72969,2740.6,2740.4,3.93752]
[1740050350449,0.5654,2740.5,2740.4,3.93752]
[1740050350852,1.26836,2740.7,2740.5,0.72968]
[1740050351050,1.83923226,2740.7,2740.5,0.72968]
[1740050352859,1.83923226,2740.7,2740.5,2.321]
[1740050353059,1.10957226,2740.7,2740.6,0.72967]
[1740050353553,0.54417226,2740.7,2740.6,0.72967]
[1740050353758,0.00547226,2740.7,2740.6,0.72967]
[1740050353960,1.6937,2741.5,2741.4,0.72946]
[1740050354264,1.6937,2741.5,2741.3,0.72947]
[1740050354560,0.72948,2741.4,2741.1,6.25833]
[1740050354765,0.72948,2741.4,2741.1,6.1058]
[1740050354961,0.72948,2741.4,2741.2,0.72951]
[1740050355565,0.59637226,2741.5,2741.1,6.1058]
[1740050356065,0.59637226,2741.5,2741.4,0.72946]
[1740050356254,0.59637226,2741.5,2741.1,6.1058]
[1740050356455,0.59637226,2741.5,2741.4,0.72946]
[1740050357361,0.73492226,2741.5,2741.3,0.72948]
[1740050357560,0.00547226,2741.5,2741.2,0.5399]
[1740050357762,0.00547226,2741.5,2741.4,0.72946]
[1740050358761,0.00547226,2741.5,2741.4,3.93726]
[1740050373269,1.1258,2742.1,2742.0,0.7293]
[1740050373573,1.1258,2742.1,2742.0,6.2571]
[1740050373869,1.85508,2742.1,2742.0,6.2571]
[1740050374067,1.1258,2742.1,2742.0,6.2571]
[1740050375373,1.85508,2742.1,2742.0,6.2571]
[1740050375969,1.1258,2742.1,2742.0,6.2571]
[1740050376470,1.85508,2742.1,2742.0,6.2571]
[1740050377473,1.1258,2742.1,2741.8,0.00547226]
[1740050377773,0.72933,2741.9,2741.8,0.00547226]
[1740050380179,0.72941,2741.6,2741.5,2.32]
[1740050381075,5.03107,2742.0,2741.3,3.2078]
[1740050381076,0.72946,2741.4,2741.3,3.2078]
[1740050381268,1.1088,2741.5,2741.3,0.00547226]
[1740050381471,0.72946,2741.4,2741.3,0.00547226]
[1740050381670,3.93726,2741.4,2741.3,0.00547226]
[1740050382180,0.72946,2741.4,2741.3,0.00547226]
[1740050383476,1.26186,2741.4,2741.3,0.00547226]
[1740050391088,1.26186,2741.4,2741.3,0.73496226]
[1740050391286,0.5324,2741.4,2741.3,0.73496226]
[1740050391483,1.27184,2741.5,2741.3,0.00547226]
[1740050391690,1.27184,2741.5,2741.4,2.32]
[1740050395494,0.5424,2741.5,2741.3,0.00547226]
[1740050395695,1.26926,2741.4,2741.3,2.32547226]
[1740050400506,1.26926,2741.4,2741.3,0.00547226]
[1740050409914,1.84606,2741.4,2741.3,0.00547226]
[1740050417011,5.05386,2741.4,2741.3,0.00547226]
[1740050417810,5.05386,2741.4,2741.3,2.26e-06]
[1740050418014,0.72965,2740.7,2740.6,0.5665]
[1740050418421,0.72967,2740.6,2740.5,0.5503]
[1740050418721,0.72973,2740.4,2740.3,22.549]
[1740050420208,0.72973,2740.4,2740.3,20.229]
[1740050420413,0.72973,2740.4,2740.3,22.549]
[1740050421211,0.72973,2740.4,2740.3,20.229]
[1740050422214,0.72978,2740.2,2740.1,1.11227226]
[1740050423717,0.72978,2740.2,2740.1,0.00547226]
[1740050433721,0.00547226,2740.6,2740.1,3.21327226]
[1740050433922,0.00547226,2740.6,2740.5,0.7297]
[1740050434219,0.00547226,2740.6,2740.5,3.9375]
[1740050435629,1.1234,2741.4,2740.5,3.9375]
[1740050435823,1.1234,2741.4,2740.9,3.2078]
[1740050436122,0.72956,2741.1,2740.9,3.93738]
[1740050436714,0.00547226,2741.3,2740.9,3.2078]
[1740050436920,0.72962,2740.8,2740.7,0.5504]
[1740050437325,0.00547226,2741.3,2740.7,0.5504]
[1740050438021,0.72962,2740.8,2740.7,0.5504]
[1740050438625,0.72961,2740.9,2740.7,0.5504]
[1740050438827,0.72961,2740.9,2740.7,1.118]
[1740050439427,0.5462,2740.8,2740.7,1.118]
[1740050440126,1.27582,2740.8,2740.7,1.118]
[1740050442026,0.5462,2740.8,2740.7,1.118]
[1740050442227,0.5462,2740.8,2740.7,1.84765]
[1740050442428,0.7296,2740.9,2740.7,1.84765]
[1740050442824,0.72962,2740.9,2740.7,1.84765]
[1740050443025,0.72959,2741.0,2740.8,0.72962]
[1740050443223,0.5617,2741.2,2740.9,0.72958]
[1740050443425,0.72957,2741.0,2740.9,0.72958]
[1740050443930,0.72957,2741.0,2740.8,0.72961]
[1740050444133,0.72959,2740.9,2740.8,0.72961]
[1740050446834,0.72958,2741.0,2740.9,0.72959]
[1740050447629,0.72961,2740.9,2740.8,0.72961]
[1740050448730,0.7296,2740.9,2740.8,0.72961]
[1740050450435,0.5617,2741.2,2740.7,1.118]
[1740050450634,0.72954,2741.1,2741.0,0.72957]
[1740050450931,0.72954,2741.1,2740.7,1.118]
[1740050451131,0.72954,2741.1,2740.9,0.72957]
[1740050451328,0.72954,2741.1,2740.7,1.118]
[1740050451528,0.72954,2741.1,2740.9,0.72957]
[1740050451733,1.29123,2741.2,2741.1,0.72954]
[1740050451932,0.00547226,2741.3,2741.2,0.72951]
[1740050453233,0.00547226,2741.3,2741.2,1.28981]
[1740050461738,0.73496226,2741.3,2741.2,3.60981]
[1740050461938,1.28066226,2741.3,2741.2,3.04951]
[1740050462543,0.55117226,2741.3,2741.2,0.72951]
[1740050462942,0.55117226,2741.3,2741.2,3.04951]
[1740050464335,1.28066226,2741.3,2741.2,3.04951]
[1740050465241,0.55117226,2741.3,2741.2,3.04951]
[1740050466048,1.28066226,2741.3,2741.2,3.04951]
[1740050467141,0.55117226,2741.3,2741.2,3.04951]
[1740050468443,1.28066226,2741.3,2741.2,3.04951]
[1740050468843,0.55117226,2741.3,2741.2,3.04951]
[1740050470346,0.00547226,2741.3,2741.2,3.04951]
[1740050477158,0.73496226,2741.3,2741.2,3.04951]
[1740050478258,0.00547226,2741.3,2741.2,3.04951]
[1740050478559,0.73496226,2741.3,2741.2,3.04951]
[1740050480958,0.00547226,2741.3,2741.2,3.04951]
[1740050481153,0.73496226,2741.3,2741.2,3.04951]
[1740050483255,0.00547226,2741.3,2741.2,3.04951]
[1740050493468,0.73496226,2741.3,2741.2,3.04951]
[1740050499371,0.73496226,2741.3,2741.2,2.32]
[1740050499568,0.00547226,2741.3,2740.8,3.2078]
[1740050499871,0.72959,2740.9,2740.7,3.04964]
[1740050500073,1.1242,2740.8,2740.7,3.04964]
[1740050500778,1.1242,2740.8,2740.7,2.32]
[1740050500967,0.72965,2740.7,2740.6,2.32]
[1740050501167,1.7055,2740.8,2740.5,3.7498]
[1740050501369,0.72972,2740.5,2740.4,2.32]
[1740050501961,0.72972,2740.5,2740.1,41.10001534]
[1740050501962,4.9133,2740.8,2740.2,3.2078]
[1740050502162,0.72975,2740.3,2740.2,5.5278]
[1740050502574,0.5674,2740.3,2740.2,5.5278]
[1740050502769,1.1487,2740.3,2740.2,5.5278]
[1740050502963,1.1487,2740.3,2740.2,3.2078]
[1740050503168,1.1487,2740.3,2740.2,5.5278]
[1740050503371,1.1487,2740.3,2740.2,6.25758]
[1740050503781,0.5481,2740.4,2740.3,0.72975]
[1740050505381,0.5762,2740.7,2740.6,0.72967]
[1740050506376,0.5415,2741.1,2740.6,2.853]
[1740050506582,0.5762,2741.0,2740.6,2.853]
[1740050506880,1.30578,2741.0,2740.8,0.72962]
[1740050507482,0.72959,2740.9,2740.8,0.72962]
[1740050507983,1.30579,2741.0,2740.8,0.72962]
[1740050509179,0.5762,2741.0,2740.6,2.853]
[1740050509483,0.5762,2741.0,2740.9,0.72959]
[1740050509782,1.30577,2741.0,2740.7,0.5797]
[1740050509977,1.30577,2741.0,2740.8,0.72961]
[1740050510383,1.30577,2741.0,2740.7,0.5797]
[1740050510584,1.30577,2741.0,2740.8,0.7296]
[1740050511180,1.30577,2741.0,2740.7,0.5797]
[1740050511380,1.30577,2741.0,2740.9,0.72959]
[1740050511686,0.5762,2741.0,2740.8,0.72961]
[1740050512080,0.5762,2741.0,2740.7,0.5797]
[1740050512281,1.30579,2741.0,2740.8,0.7296]
[1740050512483,1.30579,2741.0,2740.8,0.72962]
[1740050512683,1.30579,2741.0,2740.8,0.7296]
[1740050512990,0.5762,2741.0,2740.8,0.7296]
[1740050513188,0.72959,2740.9,2740.8,0.7296]
[1740050515085,0.5762,2741.0,2740.7,0.5797]
[1740050515290,1.30578,2741.0,2740.7,0.5797]
[1740050515483,0.7296,2740.9,2740.8,0.72961]
[1740050515678,0.72961,2740.9,2740.8,0.72961]
[1740050515878,0.7296,2740.9,2740.7,0.5797]
[1740050516081,1.30579,2741.0,2740.7,0.5797]
[1740050516289,1.30579,2741.0,2740.8,0.7296]
[1740050516583,1.30578,2741.0,2740.7,0.5797]
[1740050516788,1.30578,2741.0,2740.9,0.72959]
[1740050520888,0.5762,2741.0,2740.9,0.72959]
[1740050521791,1.30577,2741.0,2740.9,0.72959]
[1740050522589,0.5762,2741.0,2740.9,0.72959]
[1740050523994,1.30577,2741.0,2740.9,0.72959]
[1740050524195,0.5762,2741.0,2740.7,3.7875]
[1740050524398,0.7296,2740.9,2740.8,0.7296]
[1740050524599,1.30578,2741.0,2740.9,0.72959]
[1740050527495,0.5762,2741.0,2740.9,0.72959]
[1740050527688,1.30577,2741.0,2740.9,0.72959]
[1740050528094,0.5762,2741.0,2740.9,0.72959]
[1740050528295,0.72956,2741.1,2740.7,5.6116]
[1740050528495,0.72956,2741.1,2741.0,0.72954]
[1740050528700,0.72954,2741.1,2741.0,0.72954]
[1740050529604,1.1494,2741.2,2740.7,3.7875]
[1740050529796,0.72958,2741.0,2740.9,0.72957]
[1740050531305,0.72958,2741.0,2740.9,3.04957]
[1740050531599,0.72958,2741.0,2740.9,3.04959]
[1740050533804,1.1494,2741.2,2740.7,3.7875]
[1740050534004,0.72962,2740.8,2740.7,3.2078]
[1740050534806,0.5511,2741.0,2740.7,3.2078]
[1740050535009,0.5511,2741.0,2740.7,3.93743]
[1740050535199,0.72962,2740.8,2740.7,3.93743]
[1740050535500,0.72962,2740.8,2740.7,3.2078]
[1740050541705,0.72962,2740.8,2740.6,0.72966]
[1740050541902,1.1289,2740.7,2740.6,0.72966]
[1740050542807,1.85855,2740.7,2740.6,0.72966]
[1740050543101,0.72968,2740.6,2740.5,0.72968]
[1740050543414,0.5466,2740.6,2740.5,0.72968]
[1740050543602,1.27627,2740.6,2740.5,0.72968]
[1740050543808,0.7297,2740.5,2740.4,6.2575]
[1740050544311,1.2763,2740.6,2740.5,0.7297]
[1740050546412,0.5466,2740.6,2740.4,3.2078]
[1740050546716,0.7297,2740.5,2740.4,3.2078]
[1740050549014,1.1289,2740.7,2740.4,3.2078]
[1740050549216,1.1289,2740.7,2740.6,0.72967]
[1740050549420,0.72967,2740.6,2740.5,1.82649]
[1740050549829,1.29237,2740.6,2740.5,0.72969]
[1740050550314,0.72973,2740.4,2740.3,3.04974]
[1740050551217,0.72973,2740.4,2740.3,2.32]
[1740050552622,0.5627,2740.6,2740.2,0.72976]
[1740050552822,0.5517,2740.3,2740.2,0.72976]
[1740050553022,0.72978,2740.2,2740.1,6.26306226]
[1740050553328,1.27488,2740.2,2740.1,6.26306226]
[1740050553520,0.5451,2740.2,2740.1,6.26306226]
[1740050554027,1.27488,2740.2,2740.1,3.94306226]
[1740050554225,1.0857,2740.2,2740.1,3.94306226]
[1740050556223,1.81548,2740.2,2740.1,3.21327226]
[1740050562137,1.81548,2740.2,2740.1,0.00547226]
[1740050568433,0.72989,2739.8,2739.7,0.5366]
[1740050569136,5.03236,2740.1,2739.6,0.5453]
[1740050569137,0.72991,2739.7,2739.6,0.5453]
[1740050569339,1.27171,2739.7,2739.6,0.5453]
[1740050576846,0.72991,2739.7,2739.6,0.5453]
[1740050578839,2.96547226,2739.9,2739.4,1.08807226]
[1740050579046,1.83645,2739.6,2739.4,4.72835226]
[1740050579247,1.1065,2739.6,2739.4,4.72835226]
[1740050579445,0.72997,2739.5,2739.4,1.13497226]
[1740050587950,0.72996,2739.6,2739.4,5.07275226]
[1740050588648,0.5455,2739.8,2739.4,5.07275226]
[1740050589045,0.72997,2739.5,2739.4,5.07275226]
[1740050589242,0.5455,2739.8,2739.4,4.34277226]
[1740050589457,2.96547226,2739.9,2739.4,6.66377226]
[1740050589658,0.72996,2739.6,2739.4,7.39374226]